[Event "Early-Titled-Tuesday-Blitz-September-05-2023"]
[Site "Chess.com"]
[Date "2023.09.05"]
[Round "7"]
[White "LeoLV10"]
[Black "TregubovP"]
[Result "0-1"]
[WhiteElo "2494"]
[BlackElo "2641"]
[TimeControl "180+1"]
[EndTime "9:15:11 PDT"]
[Termination "TregubovP won by resignation"]

1. e4 {[%clk 0:03:00.2]} 1... c5 {[%clk 0:02:59.2]} 2. Nf3 {[%clk 0:02:51.2]}
2... e6 {[%clk 0:02:59.3]} 3. d4 {[%clk 0:02:51.8]} 3... cxd4 {[%clk 0:02:59.7]}
4. Nxd4 {[%clk 0:02:52.7]} 4... Nc6 {[%clk 0:02:59.8]} 5. Nc3 {[%clk 0:02:52.6]}
5... Nf6 {[%clk 0:03:00.4]} 6. Ndb5 {[%clk 0:02:48.2]} 6... Bb4 {[%clk
0:02:59.5]} 7. a3 {[%clk 0:02:48.2]} 7... Bxc3+ {[%clk 0:03:00.1]} 8. Nxc3
{[%clk 0:02:49.1]} 8... d5 {[%clk 0:03:00.3]} 9. exd5 {[%clk 0:02:50]} 9... exd5
{[%clk 0:03:00.7]} 10. Bd3 {[%clk 0:02:50.8]} 10... O-O {[%clk 0:03:01]} 11. O-O
{[%clk 0:02:51.4]} 11... d4 {[%clk 0:03:01.2]} 12. Ne2 {[%clk 0:02:48.8]} 12...
Bg4 {[%clk 0:03:00.5]} 13. f3 {[%clk 0:02:48.4]} 13... Bh5 {[%clk 0:03:00.5]}
14. Bg5 {[%clk 0:02:48.3]} 14... Bg6 {[%clk 0:02:54.1]} 15. Nf4 {[%clk
0:02:45.6]} 15... Qd6 {[%clk 0:02:46.9]} 16. Nxg6 {[%clk 0:02:44.4]} 16... hxg6
{[%clk 0:02:46.9]} 17. Qd2 {[%clk 0:02:44.8]} 17... Nd5 {[%clk 0:02:44.7]} 18.
Rfe1 {[%clk 0:02:38.8]} 18... Rfe8 {[%clk 0:02:44.2]} 19. Rad1 {[%clk
0:02:38.4]} 19... Qc5 {[%clk 0:02:42.8]} 20. Kh1 {[%clk 0:02:22.9]} 20... Ne3
{[%clk 0:02:40]} 21. Rc1 {[%clk 0:02:22.4]} 21... Qxg5 {[%clk 0:02:39.5]} 22. c3
{[%clk 0:02:12]} 22... Rad8 {[%clk 0:02:36.3]} 23. cxd4 {[%clk 0:02:10.6]} 23...
Rxd4 {[%clk 0:02:33.5]} 24. Rc3 {[%clk 0:02:09.7]} 24... Qf4 {[%clk 0:02:13.5]}
25. Qc1 {[%clk 0:02:02]} 25... Re5 {[%clk 0:02:08.3]} 26. Be4 {[%clk 0:01:58.2]}
26... Rh5 {[%clk 0:01:43.1]} 27. h3 {[%clk 0:01:45.7]} 27... Nxg2 {[%clk
0:01:42.8]} 28. Kxg2 {[%clk 0:00:44.9]} 28... Rd2+ {[%clk 0:01:40.7]} 29. Kf1
{[%clk 0:00:42.6]} 29... Rxh3 {[%clk 0:01:38]} 30. Re2 {[%clk 0:00:16.6]} 30...
Rh1+ {[%clk 0:01:36.9]} 31. Kf2 {[%clk 0:00:16.9]} 31... Qh2+ {[%clk 0:01:30.6]}
32. Ke3 {[%clk 0:00:13.2]} 32... Qxe2+ {[%clk 0:01:28.8]} 33. Kf4 {[%clk
0:00:14]} 0-1

[Event "Early-Titled-Tuesday-Blitz-September-05-2023"]
[Site "Chess.com"]
[Date "2023.09.05"]
[Round "7"]
[White "MasterKroket"]
[Black "HeinichessPY"]
[Result "1-0"]
[WhiteElo "2407"]
[BlackElo "2216"]
[TimeControl "180+1"]
[EndTime "9:15:11 PDT"]
[Termination "MasterKroket won by resignation"]

1. e4 {[%clk 0:02:55.1]} 1... c5 {[%clk 0:02:59.1]} 2. Nf3 {[%clk 0:02:54.8]}
2... Nc6 {[%clk 0:02:58.3]} 3. d4 {[%clk 0:02:54.9]} 3... cxd4 {[%clk
0:02:58.2]} 4. Nxd4 {[%clk 0:02:55.4]} 4... g6 {[%clk 0:02:58.4]} 5. Nc3 {[%clk
0:02:54.2]} 5... Bg7 {[%clk 0:02:58.7]} 6. Be3 {[%clk 0:02:54.8]} 6... Nf6
{[%clk 0:02:59]} 7. Bc4 {[%clk 0:02:47.5]} 7... O-O {[%clk 0:02:57.4]} 8. O-O
{[%clk 0:02:46.6]} 8... d6 {[%clk 0:02:42.9]} 9. h3 {[%clk 0:02:46.3]} 9... Bd7
{[%clk 0:02:38.8]} 10. Qd2 {[%clk 0:02:39.7]} 10... Rc8 {[%clk 0:02:37.7]} 11.
Bb3 {[%clk 0:02:35.6]} 11... Ne5 {[%clk 0:02:27.1]} 12. f4 {[%clk 0:02:32.8]}
12... Nc4 {[%clk 0:02:25.1]} 13. Bxc4 {[%clk 0:02:33.3]} 13... Rxc4 {[%clk
0:02:26]} 14. Qd3 {[%clk 0:02:31.3]} 14... Rc8 {[%clk 0:02:17.9]} 15. Nd5 {[%clk
0:02:28.5]} 15... Nxd5 {[%clk 0:02:10.4]} 16. exd5 {[%clk 0:02:29.4]} 16... Bxd4
{[%clk 0:01:53.3]} 17. Bxd4 {[%clk 0:02:27.3]} 17... Bf5 {[%clk 0:01:53.7]} 18.
Qe3 {[%clk 0:02:24.2]} 18... Rxc2 {[%clk 0:01:53]} 19. Bc3 {[%clk 0:02:22.9]}
19... Qb6 {[%clk 0:01:41.7]} 20. Qxb6 {[%clk 0:02:16.3]} 20... axb6 {[%clk
0:01:42.6]} 21. Rfe1 {[%clk 0:02:12.6]} 21... Re8 {[%clk 0:01:07.8]} 22. Rad1
{[%clk 0:02:11.1]} 22... Kf8 {[%clk 0:01:01]} 23. Rd4 {[%clk 0:02:11.1]} 23...
h5 {[%clk 0:00:50.8]} 24. Rb4 {[%clk 0:02:10.9]} 24... Bd3 {[%clk 0:00:38]} 25.
Rxb6 {[%clk 0:02:09]} 25... Bc4 {[%clk 0:00:38.6]} 26. Rd1 {[%clk 0:01:58.9]}
26... e6 {[%clk 0:00:39]} 27. dxe6 {[%clk 0:01:52.9]} 27... fxe6 {[%clk
0:00:36.6]} 28. Rbxd6 {[%clk 0:01:48.5]} 28... Bd5 {[%clk 0:00:36.3]} 29. Rd2
{[%clk 0:01:49.1]} 29... Rxd2 {[%clk 0:00:22.4]} 30. Bxd2 {[%clk 0:01:48.8]}
30... Ke7 {[%clk 0:00:22.7]} 31. Bb4 {[%clk 0:01:48.9]} 31... Kf6 {[%clk
0:00:22.5]} 32. g4 {[%clk 0:01:45]} 32... hxg4 {[%clk 0:00:21.4]} 33. hxg4
{[%clk 0:01:44.4]} 33... Rc8 {[%clk 0:00:21.9]} 34. Rd7 {[%clk 0:01:39.6]} 34...
Rc2 {[%clk 0:00:20.4]} 35. Bc3+ {[%clk 0:01:31.7]} 35... e5 {[%clk 0:00:20.9]}
36. Bxe5+ {[%clk 0:01:31.1]} 36... Ke6 {[%clk 0:00:20.8]} 37. Rd6+ {[%clk
0:01:31.4]} 37... Ke7 {[%clk 0:00:20.4]} 38. Rxd5 {[%clk 0:01:31.8]} 1-0

[Event "Early-Titled-Tuesday-Blitz-September-05-2023"]
[Site "Chess.com"]
[Date "2023.09.05"]
[Round "7"]
[White "KVAIDAN"]
[Black "GamayevOleg"]
[Result "0-1"]
[WhiteElo "2241"]
[BlackElo "2604"]
[TimeControl "180+1"]
[EndTime "9:15:13 PDT"]
[Termination "GamayevOleg won by resignation"]

1. f4 {[%clk 0:02:59.6]} 1... g6 {[%clk 0:02:55.2]} 2. Nf3 {[%clk 0:02:57.3]}
2... Bg7 {[%clk 0:02:55.6]} 3. d3 {[%clk 0:02:53.9]} 3... d5 {[%clk 0:02:54.1]}
4. e3 {[%clk 0:02:54.2]} 4... Nf6 {[%clk 0:02:52]} 5. Be2 {[%clk 0:02:54.8]}
5... O-O {[%clk 0:02:52.1]} 6. O-O {[%clk 0:02:55.4]} 6... b6 {[%clk 0:02:39.4]}
7. a4 {[%clk 0:02:53.7]} 7... a5 {[%clk 0:02:38.5]} 8. Ne5 {[%clk 0:02:53.5]}
8... Bb7 {[%clk 0:02:37.5]} 9. Qe1 {[%clk 0:02:52.3]} 9... Nbd7 {[%clk
0:02:36.1]} 10. Qh4 {[%clk 0:02:51.9]} 10... e6 {[%clk 0:02:30.8]} 11. Qh3
{[%clk 0:02:50.1]} 11... Nxe5 {[%clk 0:02:27.2]} 12. fxe5 {[%clk 0:02:50]} 12...
Nd7 {[%clk 0:02:28.1]} 13. d4 {[%clk 0:02:50.6]} 13... Ba6 {[%clk 0:02:18.8]}
14. Nc3 {[%clk 0:02:38.8]} 14... Bxe2 {[%clk 0:02:16.4]} 15. Nxe2 {[%clk
0:02:38.7]} 15... Qe7 {[%clk 0:02:17.3]} 16. Nf4 {[%clk 0:02:36.8]} 16... Rfe8
{[%clk 0:02:12.9]} 17. b3 {[%clk 0:02:10.9]} 17... f6 {[%clk 0:02:11.6]} 18. Ba3
{[%clk 0:02:10.1]} 18... c5 {[%clk 0:02:11.3]} 19. exf6 {[%clk 0:02:05.9]} 19...
Bxf6 {[%clk 0:02:12.2]} 20. c4 {[%clk 0:02:05.7]} 20... Bg5 {[%clk 0:02:05.4]}
21. Rae1 {[%clk 0:02:01.9]} 21... dxc4 {[%clk 0:02:01.3]} 22. bxc4 {[%clk
0:02:01.6]} 22... Nf8 {[%clk 0:01:54.2]} 23. Qg4 {[%clk 0:01:59.8]} 23... Bxf4
{[%clk 0:01:51.8]} 24. exf4 {[%clk 0:01:57.5]} 24... Rad8 {[%clk 0:01:26]} 25.
f5 {[%clk 0:01:47]} 25... exf5 {[%clk 0:01:09.3]} 26. Rxe7 {[%clk 0:01:43.2]}
26... fxg4 {[%clk 0:01:08.7]} 27. Rxe8 {[%clk 0:01:43.7]} 27... Rxe8 {[%clk
0:01:08.9]} 28. dxc5 {[%clk 0:01:44.3]} 28... bxc5 {[%clk 0:01:09.1]} 29. Bxc5
{[%clk 0:01:44.6]} 29... Ne6 {[%clk 0:01:07]} 30. Bb6 {[%clk 0:01:41.7]} 30...
Rc8 {[%clk 0:01:06.9]} 31. c5 {[%clk 0:01:37]} 31... Nd4 {[%clk 0:00:55]} 32.
Rd1 {[%clk 0:01:30]} 32... Nb3 {[%clk 0:00:50.1]} 33. Rd3 {[%clk 0:01:26.2]}
33... Nc1 {[%clk 0:00:45.5]} 34. Rd6 {[%clk 0:01:18.5]} 34... Ne2+ {[%clk
0:00:40.4]} 35. Kf2 {[%clk 0:01:18.4]} 35... Nc3 {[%clk 0:00:41.3]} 36. c6
{[%clk 0:01:15.9]} 36... Ne4+ {[%clk 0:00:40.7]} 37. Ke3 {[%clk 0:01:14.3]}
37... Nxd6 {[%clk 0:00:41.6]} 38. c7 {[%clk 0:01:14.7]} 38... Nc4+ {[%clk
0:00:40.7]} 0-1

[Event "Early-Titled-Tuesday-Blitz-September-05-2023"]
[Site "Chess.com"]
[Date "2023.09.05"]
[Round "7"]
[White "Orest_Vovk"]
[Black "GMG"]
[Result "1/2-1/2"]
[WhiteElo "2624"]
[BlackElo "2783"]
[TimeControl "180+1"]
[EndTime "9:15:29 PDT"]
[Termination "Game drawn by agreement"]

1. g4 {[%clk 0:02:48.9]} 1... g6 {[%clk 0:02:59.1]} 2. g5 {[%clk 0:02:48.2]}
2... h6 {[%clk 0:02:56.7]} 3. d4 {[%clk 0:02:43.5]} 3... Bg7 {[%clk 0:02:49.8]}
4. Bg2 {[%clk 0:02:42.9]} 4... c5 {[%clk 0:02:43.9]} 5. d5 {[%clk 0:02:39.7]}
5... hxg5 {[%clk 0:02:42.2]} 6. Bxg5 {[%clk 0:02:35.9]} 6... Bxb2 {[%clk
0:02:41.4]} 7. Nd2 {[%clk 0:02:36.2]} 7... Bxa1 {[%clk 0:02:40.8]} 8. Qxa1
{[%clk 0:02:37.1]} 8... f6 {[%clk 0:02:41.4]} 9. d6 {[%clk 0:02:37]} 9... Nc6
{[%clk 0:02:23.3]} 10. e3 {[%clk 0:02:08.2]} 10... e5 {[%clk 0:02:12.1]} 11.
Bxc6 {[%clk 0:01:47.9]} 11... dxc6 {[%clk 0:02:11]} 12. Ne4 {[%clk 0:01:47.3]}
12... Kf7 {[%clk 0:02:03.3]} 13. Nf3 {[%clk 0:01:40]} 13... Rh5 {[%clk
0:01:36.2]} 14. Nxe5+ {[%clk 0:01:36.8]} 14... Kg7 {[%clk 0:01:30.7]} 15. d7
{[%clk 0:00:55.3]} 15... Bxd7 {[%clk 0:01:27]} 16. Nxd7 {[%clk 0:00:50.4]} 16...
Rxg5 {[%clk 0:01:07.2]} 17. Ndxf6 {[%clk 0:00:32.1]} 17... Nxf6 {[%clk
0:01:03.8]} 18. Nxg5 {[%clk 0:00:32.1]} 18... Qd5 {[%clk 0:01:03.8]} 19. Rg1
{[%clk 0:00:28.1]} 19... Rd8 {[%clk 0:01:04.3]} 20. e4 {[%clk 0:00:13.2]} 20...
Qd2+ {[%clk 0:00:53.1]} 21. Kf1 {[%clk 0:00:12.9]} 1/2-1/2

[Event "Early-Titled-Tuesday-Blitz-September-05-2023"]
[Site "Chess.com"]
[Date "2023.09.05"]
[Round "7"]
[White "nassimzrikem"]
[Black "Atanejhad"]
[Result "1-0"]
[WhiteElo "2256"]
[BlackElo "2359"]
[TimeControl "180+1"]
[EndTime "9:15:31 PDT"]
[Termination "nassimzrikem won by checkmate"]

1. d4 {[%clk 0:03:00.9]} 1... Nf6 {[%clk 0:02:58.4]} 2. Nf3 {[%clk 0:03:00.8]}
2... g6 {[%clk 0:02:57.1]} 3. Bg5 {[%clk 0:03:00.2]} 3... Bg7 {[%clk 0:02:56.9]}
4. Nbd2 {[%clk 0:03:00.8]} 4... O-O {[%clk 0:02:56.2]} 5. c3 {[%clk 0:02:59.9]}
5... d5 {[%clk 0:02:53.7]} 6. e3 {[%clk 0:02:59.8]} 6... Bg4 {[%clk 0:02:51.9]}
7. h3 {[%clk 0:02:59.5]} 7... Bxf3 {[%clk 0:02:51.4]} 8. Qxf3 {[%clk 0:02:34.4]}
8... c6 {[%clk 0:02:47.8]} 9. h4 {[%clk 0:02:34.3]} 9... h6 {[%clk 0:02:40.9]}
10. Bxf6 {[%clk 0:02:33.7]} 10... exf6 {[%clk 0:02:36.8]} 11. h5 {[%clk
0:02:34.2]} 11... Nd7 {[%clk 0:02:34]} 12. Bd3 {[%clk 0:02:33.5]} 12... f5
{[%clk 0:02:32.2]} 13. O-O-O {[%clk 0:02:26.6]} 13... Nf6 {[%clk 0:02:27.4]} 14.
Rdg1 {[%clk 0:02:15.3]} 14... Qd7 {[%clk 0:02:08.8]} 15. hxg6 {[%clk 0:02:02.3]}
15... fxg6 {[%clk 0:02:07.7]} 16. Qg3 {[%clk 0:02:03]} 16... Kh7 {[%clk
0:02:02.1]} 17. f3 {[%clk 0:02:02.4]} 17... Rae8 {[%clk 0:01:57.6]} 18. Nf1
{[%clk 0:02:00.4]} 18... c5 {[%clk 0:01:56.3]} 19. dxc5 {[%clk 0:01:44.3]} 19...
Qc8 {[%clk 0:01:51.8]} 20. Rh4 {[%clk 0:01:32.1]} 20... Qxc5 {[%clk 0:01:45]}
21. Rgh1 {[%clk 0:01:29.1]} 21... Rxe3 {[%clk 0:01:41.3]} 22. Nxe3 {[%clk
0:00:55.8]} 22... Qxe3+ {[%clk 0:01:42.2]} 23. Kc2 {[%clk 0:00:56.5]} 23... Ne4
{[%clk 0:01:14.7]} 24. Qc7 {[%clk 0:00:45.4]} 24... Qd2+ {[%clk 0:01:12.6]} 25.
Kb3 {[%clk 0:00:45.9]} 25... Qxd3 {[%clk 0:00:16.1]} 26. Rxh6+ {[%clk
0:00:45.7]} 26... Kg8 {[%clk 0:00:16.3]} 27. Rh8+ {[%clk 0:00:46.3]} 27... Bxh8
{[%clk 0:00:16.2]} 28. Qh7# {[%clk 0:00:47.2]} 1-0

[Event "Early-Titled-Tuesday-Blitz-September-05-2023"]
[Site "Chess.com"]
[Date "2023.09.05"]
[Round "7"]
[White "Manukyan_Artak"]
[Black "Thecourseoisildur"]
[Result "1-0"]
[WhiteElo "2465"]
[BlackElo "2580"]
[TimeControl "180+1"]
[EndTime "9:15:35 PDT"]
[Termination "Manukyan_Artak won on time"]

1. e4 {[%clk 0:03:00.9]} 1... e5 {[%clk 0:02:59.1]} 2. Nf3 {[%clk 0:03:00.5]}
2... Nc6 {[%clk 0:03:00]} 3. d4 {[%clk 0:03:01]} 3... exd4 {[%clk 0:02:59.9]} 4.
Nxd4 {[%clk 0:03:01.9]} 4... Nf6 {[%clk 0:03:00.4]} 5. Nxc6 {[%clk 0:03:02.3]}
5... bxc6 {[%clk 0:02:56.4]} 6. e5 {[%clk 0:03:03.2]} 6... Qe7 {[%clk
0:02:54.5]} 7. Qe2 {[%clk 0:03:03.7]} 7... Nd5 {[%clk 0:02:54.7]} 8. c4 {[%clk
0:03:04.6]} 8... Nb6 {[%clk 0:02:54]} 9. b3 {[%clk 0:03:04.1]} 9... g6 {[%clk
0:02:53.7]} 10. g3 {[%clk 0:03:04]} 10... Bg7 {[%clk 0:02:53.8]} 11. Bb2 {[%clk
0:03:04.4]} 11... O-O {[%clk 0:02:46.9]} 12. Bg2 {[%clk 0:03:03.8]} 12... Bb7
{[%clk 0:02:32.5]} 13. O-O {[%clk 0:03:03.1]} 13... d6 {[%clk 0:02:28]} 14. f4
{[%clk 0:03:01.5]} 14... Rab8 {[%clk 0:02:25.7]} 15. Re1 {[%clk 0:03:00.7]}
15... c5 {[%clk 0:02:21.9]} 16. Bxb7 {[%clk 0:02:56.4]} 16... Rxb7 {[%clk
0:02:22.8]} 17. Nd2 {[%clk 0:02:55.2]} 17... Na4 {[%clk 0:02:07.6]} 18. Nf3
{[%clk 0:02:42.3]} 18... Nxb2 {[%clk 0:02:01.5]} 19. Qxb2 {[%clk 0:02:43.2]}
19... dxe5 {[%clk 0:02:00.8]} 20. Nxe5 {[%clk 0:02:39.9]} 20... Rbb8 {[%clk
0:01:36.6]} 21. Qf2 {[%clk 0:02:34.6]} 21... Bxe5 {[%clk 0:00:24.9]} 22. Rxe5
{[%clk 0:02:30.3]} 22... Qd6 {[%clk 0:00:24]} 23. Qxc5 {[%clk 0:02:25.3]} 23...
Qd2 {[%clk 0:00:21.2]} 24. Qf2 {[%clk 0:02:22.9]} 24... Qc3 {[%clk 0:00:20.6]}
25. Rae1 {[%clk 0:02:19.2]} 25... Rbd8 {[%clk 0:00:15.6]} 26. h4 {[%clk
0:02:16.9]} 26... Rd2 {[%clk 0:00:13.2]} 27. R5e2 {[%clk 0:02:17]} 27... Rd6
{[%clk 0:00:06.1]} 28. Kh2 {[%clk 0:02:13.7]} 28... a5 {[%clk 0:00:05.6]} 29.
Qe3 {[%clk 0:02:11.4]} 29... Qg7 {[%clk 0:00:05.7]} 30. Qe5 {[%clk 0:02:11.1]}
30... Qh6 {[%clk 0:00:05]} 31. Qxa5 {[%clk 0:02:08.5]} 31... Rfd8 {[%clk
0:00:02.1]} 32. Re8+ {[%clk 0:02:00.4]} 32... Rxe8 {[%clk 0:00:02.2]} 33. Rxe8+
{[%clk 0:02:01.3]} 33... Kg7 {[%clk 0:00:02.9]} 34. Qe5+ {[%clk 0:02:00.5]}
34... Rf6 {[%clk 0:00:02.9]} 35. Kh3 {[%clk 0:01:46]} 35... Qh5 {[%clk
0:00:02.2]} 36. Qxh5 {[%clk 0:01:45.7]} 36... gxh5 {[%clk 0:00:03.1]} 37. Re5
{[%clk 0:01:45.3]} 37... Ra6 {[%clk 0:00:03.1]} 38. a4 {[%clk 0:01:45.1]} 38...
Rb6 {[%clk 0:00:03.5]} 39. Rb5 {[%clk 0:01:45.1]} 39... Ra6 {[%clk 0:00:01.7]}
40. Rxh5 {[%clk 0:01:44.9]} 40... c6 {[%clk 0:00:01.2]} 41. a5 {[%clk
0:01:43.9]} 41... Kg6 {[%clk 0:00:01.5]} 42. Rg5+ {[%clk 0:01:42.4]} 42... Kf6
{[%clk 0:00:01.6]} 43. b4 {[%clk 0:01:43.3]} 43... Ke6 {[%clk 0:00:01.5]} 44.
Rc5 {[%clk 0:01:42.1]} 44... Kd6 {[%clk 0:00:01.4]} 45. Rh5 {[%clk 0:01:40.6]}
1-0

[Event "Early-Titled-Tuesday-Blitz-September-05-2023"]
[Site "Chess.com"]
[Date "2023.09.05"]
[Round "7"]
[White "Doudou2015"]
[Black "Zhani-Z"]
[Result "1-0"]
[WhiteElo "2173"]
[BlackElo "2250"]
[TimeControl "180+1"]
[EndTime "9:15:36 PDT"]
[Termination "Doudou2015 won by checkmate"]

1. b3 {[%clk 0:02:55.8]} 1... b6 {[%clk 0:02:59.8]} 2. Bb2 {[%clk 0:02:56.7]}
2... Bb7 {[%clk 0:03:00.1]} 3. e3 {[%clk 0:02:57.1]} 3... e6 {[%clk 0:03:00.1]}
4. f4 {[%clk 0:02:57.8]} 4... f5 {[%clk 0:03:00]} 5. Nf3 {[%clk 0:02:58.7]} 5...
Nf6 {[%clk 0:02:58.1]} 6. Be2 {[%clk 0:02:59.1]} 6... Be7 {[%clk 0:02:57.8]} 7.
O-O {[%clk 0:02:59.2]} 7... O-O {[%clk 0:02:58.1]} 8. h3 {[%clk 0:02:59.3]} 8...
h6 {[%clk 0:02:57.9]} 9. d3 {[%clk 0:02:58.5]} 9... d6 {[%clk 0:02:57.6]} 10.
Re1 {[%clk 0:02:55.6]} 10... Re8 {[%clk 0:02:57.5]} 11. Nbd2 {[%clk 0:02:55.3]}
11... Nbd7 {[%clk 0:02:57]} 12. Nf1 {[%clk 0:02:46.2]} 12... Nf8 {[%clk
0:02:55.5]} 13. Ng3 {[%clk 0:02:46.4]} 13... Ng6 {[%clk 0:02:54.9]} 14. Qd2
{[%clk 0:02:42.7]} 14... Qd7 {[%clk 0:02:53.5]} 15. e4 {[%clk 0:02:42.9]} 15...
fxe4 {[%clk 0:02:50.4]} 16. dxe4 {[%clk 0:02:43.8]} 16... Nxe4 {[%clk
0:02:50.4]} 17. Nxe4 {[%clk 0:02:43.7]} 17... Bxe4 {[%clk 0:02:48.9]} 18. Rad1
{[%clk 0:02:26.3]} 18... Rf8 {[%clk 0:02:43.4]} 19. Qd4 {[%clk 0:02:22.5]} 19...
Bf6 {[%clk 0:02:42.8]} 20. Qxe4 {[%clk 0:02:22.9]} 20... Bxb2 {[%clk 0:02:38.5]}
21. Qxg6 {[%clk 0:02:19.5]} 21... Rxf4 {[%clk 0:02:38.8]} 22. Bd3 {[%clk
0:01:59]} 22... Raf8 {[%clk 0:02:36.1]} 23. Rxe6 {[%clk 0:01:44.8]} 23... Bf6
{[%clk 0:02:23.8]} 24. Rde1 {[%clk 0:01:41.8]} 24... Be5 {[%clk 0:02:14.6]} 25.
Nxe5 {[%clk 0:01:39.4]} 25... dxe5 {[%clk 0:02:12.7]} 26. R1xe5 {[%clk
0:01:34.3]} 26... Rf1+ {[%clk 0:01:25.7]} 27. Bxf1 {[%clk 0:01:33.5]} 27... Qd4+
{[%clk 0:01:23.8]} 28. Re3 {[%clk 0:01:32.6]} 28... Qf4 {[%clk 0:01:18.8]} 29.
Bc4 {[%clk 0:01:21.7]} 29... Qf2+ {[%clk 0:01:03.8]} 30. Kh2 {[%clk 0:01:21.4]}
30... Qf4+ {[%clk 0:00:59]} 31. Qg3 {[%clk 0:01:21.5]} 31... Qxg3+ {[%clk
0:00:50.8]} 32. Rxg3 {[%clk 0:01:22.3]} 32... Kh8 {[%clk 0:00:48.4]} 33. Re7
{[%clk 0:01:21.3]} 33... b5 {[%clk 0:00:46.5]} 34. Rgxg7 {[%clk 0:01:15.2]}
34... Rf7 {[%clk 0:00:42.7]} 35. Rexf7 {[%clk 0:01:14.4]} 35... bxc4 {[%clk
0:00:41.2]} 36. bxc4 {[%clk 0:01:11.2]} 36... h5 {[%clk 0:00:38.1]} 37. Rxc7
{[%clk 0:01:10.6]} 37... h4 {[%clk 0:00:37]} 38. Rgd7 {[%clk 0:01:11.4]} 38...
Kg8 {[%clk 0:00:27.6]} 39. Rc8# {[%clk 0:01:12.3]} 1-0

[Event "Early-Titled-Tuesday-Blitz-September-05-2023"]
[Site "Chess.com"]
[Date "2023.09.05"]
[Round "7"]
[White "FeketeBarika"]
[Black "PepeCuenca"]
[Result "0-1"]
[WhiteElo "2372"]
[BlackElo "2687"]
[TimeControl "180+1"]
[EndTime "9:15:42 PDT"]
[Termination "PepeCuenca won by resignation"]

1. Nf3 {[%clk 0:02:59.5]} 1... Nf6 {[%clk 0:02:57.9]} 2. c4 {[%clk 0:02:51.9]}
2... g6 {[%clk 0:02:58.3]} 3. b3 {[%clk 0:02:47.9]} 3... Bg7 {[%clk 0:02:58.4]}
4. Bb2 {[%clk 0:02:48.3]} 4... O-O {[%clk 0:02:58.8]} 5. g3 {[%clk 0:02:48.6]}
5... d6 {[%clk 0:02:57.8]} 6. Bg2 {[%clk 0:02:48.5]} 6... e5 {[%clk 0:02:58.2]}
7. d3 {[%clk 0:02:48]} 7... Nc6 {[%clk 0:02:55.4]} 8. O-O {[%clk 0:02:47.5]}
8... a5 {[%clk 0:02:55.9]} 9. a3 {[%clk 0:02:38]} 9... Re8 {[%clk 0:02:51.4]}
10. Nbd2 {[%clk 0:02:37.4]} 10... d5 {[%clk 0:02:49.9]} 11. cxd5 {[%clk
0:02:33.5]} 11... Nxd5 {[%clk 0:02:50.8]} 12. Rc1 {[%clk 0:02:33.3]} 12... Bf6
{[%clk 0:02:42.6]} 13. Ne4 {[%clk 0:02:27.4]} 13... Bg7 {[%clk 0:02:39.4]} 14.
Nc5 {[%clk 0:02:26.1]} 14... Nd4 {[%clk 0:02:32.6]} 15. e3 {[%clk 0:02:02.7]}
15... Nxf3+ {[%clk 0:02:16.9]} 16. Bxf3 {[%clk 0:02:03.6]} 16... c6 {[%clk
0:02:12.8]} 17. Qd2 {[%clk 0:01:50]} 17... Qe7 {[%clk 0:02:08]} 18. Bg2 {[%clk
0:01:44.3]} 18... h5 {[%clk 0:02:05.7]} 19. h4 {[%clk 0:01:41.7]} 19... Bg4
{[%clk 0:02:04.4]} 20. e4 {[%clk 0:01:38.7]} 20... Nb6 {[%clk 0:01:52]} 21. Qe3
{[%clk 0:01:28.2]} 21... Nc8 {[%clk 0:01:46]} 22. Na4 {[%clk 0:01:23.7]} 22...
Be6 {[%clk 0:01:38.2]} 23. Nc5 {[%clk 0:01:18.5]} 23... Nd6 {[%clk 0:01:32.5]}
24. a4 {[%clk 0:01:12.2]} 24... Red8 {[%clk 0:01:10.1]} 25. Ba3 {[%clk
0:01:10.3]} 25... Bc8 {[%clk 0:01:01.6]} 26. Rc3 {[%clk 0:01:07]} 26... b6
{[%clk 0:00:59.7]} 27. Rfc1 {[%clk 0:01:03.7]} 27... bxc5 {[%clk 0:00:58.1]} 28.
Qxc5 {[%clk 0:01:04.4]} 28... Bb7 {[%clk 0:00:48]} 29. Qb6 {[%clk 0:01:04.4]}
29... Ra6 {[%clk 0:00:41.6]} 30. Bxd6 {[%clk 0:00:57.3]} 30... Rxd6 {[%clk
0:00:37.5]} 31. Qc5 {[%clk 0:00:57.2]} 31... Rd7 {[%clk 0:00:34.8]} 32. Qe3
{[%clk 0:00:56.1]} 32... Qd6 {[%clk 0:00:30.2]} 33. Bh3 {[%clk 0:00:55.4]} 33...
Rd8 {[%clk 0:00:29.6]} 34. Rc5 {[%clk 0:00:55.4]} 34... Kh7 {[%clk 0:00:27.1]}
35. Bf1 {[%clk 0:00:53.7]} 35... Bh6 {[%clk 0:00:25.8]} 0-1

[Event "Early-Titled-Tuesday-Blitz-September-05-2023"]
[Site "Chess.com"]
[Date "2023.09.05"]
[Round "7"]
[White "MFatigue"]
[Black "Jumbo"]
[Result "0-1"]
[WhiteElo "2515"]
[BlackElo "2906"]
[TimeControl "180+1"]
[EndTime "9:15:45 PDT"]
[Termination "Jumbo won by resignation"]

1. e4 {[%clk 0:03:00.9]} 1... e6 {[%clk 0:01:43.8]} 2. d4 {[%clk 0:02:59]} 2...
d5 {[%clk 0:01:44.7]} 3. Nc3 {[%clk 0:02:59.5]} 3... Nf6 {[%clk 0:01:44.8]} 4.
e5 {[%clk 0:02:59.8]} 4... Nfd7 {[%clk 0:01:45.4]} 5. f4 {[%clk 0:03:00.7]} 5...
c5 {[%clk 0:01:46.1]} 6. Nf3 {[%clk 0:03:01.4]} 6... Nc6 {[%clk 0:01:46.9]} 7.
Be3 {[%clk 0:03:02]} 7... a6 {[%clk 0:01:47.6]} 8. Qd2 {[%clk 0:03:01.3]} 8...
b5 {[%clk 0:01:48.1]} 9. dxc5 {[%clk 0:03:01.3]} 9... Bxc5 {[%clk 0:01:48.9]}
10. Bxc5 {[%clk 0:03:01.7]} 10... Nxc5 {[%clk 0:01:49.8]} 11. Qf2 {[%clk
0:03:02.1]} 11... Qb6 {[%clk 0:01:48]} 12. Bd3 {[%clk 0:03:02.6]} 12... h6
{[%clk 0:01:47.6]} 13. O-O {[%clk 0:03:00.6]} 13... O-O {[%clk 0:01:43.6]} 14.
f5 {[%clk 0:02:56.7]} 14... b4 {[%clk 0:01:35.7]} 15. Ne2 {[%clk 0:02:56.1]}
15... exf5 {[%clk 0:01:34]} 16. Ned4 {[%clk 0:02:44.4]} 16... Ne4 {[%clk
0:01:27.4]} 17. Bxe4 {[%clk 0:02:29.3]} 17... fxe4 {[%clk 0:01:27]} 18. Nxc6
{[%clk 0:02:29.9]} 18... Qxc6 {[%clk 0:01:26.4]} 19. Nd4 {[%clk 0:02:28.2]}
19... Qc7 {[%clk 0:01:19.6]} 20. Qg3 {[%clk 0:02:15.3]} 20... Re8 {[%clk
0:01:19.8]} 21. Rf6 {[%clk 0:01:45.2]} 21... Qxe5 {[%clk 0:01:13.3]} 22. Qxe5
{[%clk 0:01:45.9]} 22... Rxe5 {[%clk 0:01:13.8]} 23. Rd6 {[%clk 0:01:46.8]}
23... Be6 {[%clk 0:01:04.5]} 24. Nc6 {[%clk 0:01:44.2]} 24... Rg5 {[%clk
0:00:59.7]} 25. Nxb4 {[%clk 0:01:34]} 25... Rb8 {[%clk 0:01:00.1]} 26. Nxa6
{[%clk 0:01:13.3]} 26... Rxb2 {[%clk 0:00:58.6]} 27. Rc6 {[%clk 0:01:13.9]}
27... d4 {[%clk 0:00:55]} 28. Nc7 {[%clk 0:01:14.3]} 28... d3 {[%clk 0:00:52.2]}
29. Nxe6 {[%clk 0:01:09.5]} 29... fxe6 {[%clk 0:00:53.1]} 30. a4 {[%clk
0:00:45.3]} 30... e3 {[%clk 0:00:43.7]} 31. cxd3 {[%clk 0:00:43.7]} 31... Rgxg2+
{[%clk 0:00:42.1]} 32. Kh1 {[%clk 0:00:29.3]} 32... Rxh2+ {[%clk 0:00:41.7]} 33.
Kg1 {[%clk 0:00:30.2]} 33... Rbg2+ {[%clk 0:00:42]} 34. Kf1 {[%clk 0:00:30.8]}
34... e2+ {[%clk 0:00:42.7]} 35. Ke1 {[%clk 0:00:30.2]} 35... Rh1+ {[%clk
0:00:43.1]} 0-1